bitfinex/quotes_BTCUSD_20240831
["timestamp","ask_amount","ask_price","bid_price","bid_amount"]
[1725125146556,0.63538349,59076.0,59075.0,0.75893142]
[1725125147250,0.73538349,59076.0,59075.0,0.75893142]
[1725125147476,0.73538349,59076.0,59075.0,0.86050323]
[1725125147477,0.73638349,59076.0,59075.0,0.86050323]
[1725125147699,0.70982,59076.0,59075.0,0.86050323]
[1725125147924,0.70882,59076.0,59075.0,1.19705523]
[1725125148149,0.70782,59076.0,59075.0,0.85850323]
[1725125148401,0.70982,59076.0,59075.0,0.85950323]
[1725125148628,0.70982,59076.0,59075.0,0.75693142]
[1725125148860,0.71082,59076.0,59075.0,0.75793142]
[1725125149318,0.71082,59076.0,59075.0,0.58865542]
[1725125149570,0.70982,59076.0,59075.0,0.66478237]
[1725125149775,0.70782,59076.0,59075.0,0.66378237]
[1725125149989,0.70882,59076.0,59075.0,0.66378237]
[1725125150642,0.70882,59076.0,59075.0,0.2115998]
[1725125151194,0.70882,59076.0,59075.0,0.3818758]
[1725125151422,0.70982,59076.0,59075.0,0.3818758]
[1725125152311,0.70982,59076.0,59075.0,0.2125998]
[1725125152521,0.70982,59076.0,59075.0,0.26331537]
[1725125152732,0.70982,59076.0,59075.0,0.26331337]
[1725125153427,0.70982,59076.0,59075.0,0.43258937]
[1725125153835,0.73637843,59076.0,59075.0,0.43258937]
[1725125154664,0.73637843,59076.0,59075.0,0.3818758]
[1725125156620,0.73637843,59076.0,59075.0,0.7204278]
[1725125156872,0.73637843,59076.0,59075.0,0.3818758]
[1725125157545,0.70982,59076.0,59075.0,0.3818758]
[1725125159531,0.70982,59076.0,59075.0,0.2125998]
[1725125161113,0.73637847,59076.0,59075.0,0.2125998]
[1725125161537,0.73637847,59076.0,59075.0,0.3818758]
[1725125161745,0.22855847,59076.0,59075.0,0.38526098]
[1725125161982,0.12855847,59076.0,59075.0,0.72881298]
[1725125162218,0.12855847,59076.0,59075.0,1.78190176]
[1725125162461,0.04565847,59076.0,59075.0,1.79390176]
[1725125162693,0.000819,59083.0,59082.0,1.02378]
[1725125162923,0.000819,59083.0,59082.0,1.04678]
[1725125163149,0.000819,59083.0,59082.0,1.09743059]
[1725125163810,0.001819,59083.0,59082.0,1.09743059]
[1725125164255,0.001819,59083.0,59082.0,1.04678]
[1725125164482,0.002819,59083.0,59082.0,1.04878]
[1725125166510,0.02937185,59083.0,59082.0,1.04878]
[1725125168290,0.02937185,59083.0,59082.0,1.24139406]
[1725125168725,0.02937185,59083.0,59082.0,1.04878]
[1725125170747,0.002819,59083.0,59082.0,1.04878]
[1725125171212,0.002819,59083.0,59082.0,1.387292]
[1725125172347,0.002819,59083.0,59082.0,1.399292]
[1725125174070,0.002819,59083.0,59082.0,1.85109136]
[1725125174289,0.002819,59083.0,59082.0,1.78684743]
[1725125174523,0.002819,59083.0,59082.0,1.90237274]
[1725125174746,0.001819,59083.0,59082.0,1.90037274]
[1725125174986,0.000819,59083.0,59082.0,1.90037274]
[1725125175222,0.001819,59083.0,59082.0,1.90237274]
[1725125175455,0.001819,59083.0,59082.0,1.90837274]
[1725125175901,0.000819,59083.0,59082.0,1.90037274]
[1725125176135,0.001819,59083.0,59082.0,1.90837274]
[1725125176587,0.001819,59083.0,59082.0,2.00955132]
[1725125176807,0.002819,59083.0,59082.0,2.02355132]
[1725125180508,0.002819,59083.0,59082.0,1.92237274]
[1725125180733,0.002819,59083.0,59082.0,2.26088474]
[1725125182390,0.000819,59087.0,59086.0,1.82542531]
[1725125182608,0.000819,59087.0,59086.0,2.20134074]
[1725125182837,0.000819,59087.0,59086.0,2.37610602]
[1725125183083,0.415158,59112.0,59111.0,0.002]
[1725125183330,0.584328,59112.0,59111.0,0.002]
[1725125183556,0.684328,59112.0,59111.0,0.002]
[1725125183786,0.684328,59112.0,59111.0,0.001]
[1725125184494,0.687328,59112.0,59111.0,0.001]
[1725125184739,1.025668,59112.0,59111.0,0.001]
[1725125185175,0.169189,59106.0,59101.0,0.005]
[1725125185403,0.169196,59103.0,59102.0,0.023]
[1725125185663,0.169196,59103.0,59099.0,0.023]
[1725125186816,0.169196,59103.0,59102.0,0.01]
[1725125186817,0.170196,59103.0,59102.0,0.01]
[1725125187050,0.170196,59103.0,59102.0,0.033]
[1725125187513,0.19674249,59103.0,59102.0,0.033]
[1725125187740,0.19774249,59103.0,59102.0,0.033]
[1725125187971,0.170196,59103.0,59102.0,0.023]
[1725125188243,0.171196,59103.0,59102.0,0.013]
[1725125188471,0.172196,59103.0,59102.0,0.0359407]
[1725125188935,0.171196,59103.0,59102.0,0.0359407]
[1725125189158,0.172196,59103.0,59102.0,0.0469407]
[1725125190990,0.19874245,59103.0,59102.0,0.0469407]
[1725125192574,0.19956045,59103.0,59102.0,0.0469407]
[1725125193695,0.19656045,59103.0,59102.0,0.023]
[1725125193833,0.02836445,59103.0,59102.0,0.013]
[1725125194220,0.02736445,59103.0,59102.0,0.023]
[1725125194419,0.02836445,59103.0,59102.0,0.014]
[1725125194649,0.02836445,59103.0,59102.0,0.037]
[1725125195303,0.02836445,59103.0,59102.0,0.048]
[1725125195713,0.02836445,59103.0,59102.0,0.037]
[1725125196193,0.02836445,59103.0,59102.0,0.051]
[1725125197490,0.001818,59103.0,59102.0,0.051]
[1725125200949,0.02836424,59103.0,59102.0,0.051]
[1725125202431,0.02836424,59103.0,59102.0,0.220199]
[1725125202648,0.02836424,59103.0,59102.0,0.27084087]
[1725125203050,0.02836424,59103.0,59102.0,0.220199]
[1725125203520,0.02836424,59103.0,59102.0,1.78233172]
[1725125203766,0.02836424,59103.0,59102.0,1.9189364]
[1725125203977,0.02836424,59103.0,59102.0,1.79233172]
[1725125204215,0.02836424,59103.0,59102.0,1.79228658]
[1725125204441,0.02836424,59103.0,59102.0,1.79318638]
[1725125205112,0.101818,59103.0,59102.0,1.79318638]
[1725125209020,0.101818,59103.0,59102.0,1.79316493]
[1725125211722,0.101818,59103.0,59102.0,1.45476693]
[1725125213489,0.101818,59103.0,59102.0,1.57029224]
[1725125213702,0.101818,59103.0,59102.0,1.57229224]
[1725125214343,0.101818,59103.0,59102.0,1.57029224]
[1725125218965,0.101818,59103.0,59102.0,1.57030208]
[1725125219223,0.101818,59103.0,59102.0,1.28867677]
[1725125219447,0.101818,59103.0,59102.0,0.41468177]
[1725125219666,0.101818,59103.0,59102.0,0.40468177]
[1725125220826,0.101818,59103.0,59102.0,0.42768177]
[1725125222394,0.271014,59103.0,59102.0,0.42768177]
[1725125222635,0.444614,59103.0,59102.0,0.42768177]
[1725125222838,0.444614,59103.0,59102.0,0.55454717]
[1725125223766,0.180918,59103.0,59102.0,0.55454717]
[1725125225123,0.350114,59103.0,59102.0,0.55454717]
[1725125225344,0.350114,59103.0,59102.0,0.42768177]
[1725125225577,0.350114,59103.0,59102.0,0.55461755]
[1725125225808,0.37665982,59103.0,59102.0,0.55461755]
[1725125226401,0.37665982,59103.0,59102.0,0.42768177]
[1725125227106,0.37665982,59103.0,59102.0,0.42773471]
[1725125227526,0.350114,59103.0,59102.0,0.42773471]
[1725125229248,0.688506,59103.0,59102.0,0.42773471]
[1725125230931,0.71505222,59103.0,59102.0,0.42773471]
[1725125232971,0.37666022,59103.0,59102.0,0.42773471]
[1725125234422,0.37666022,59103.0,59102.0,0.5547229]
[1725125236953,0.37666022,59103.0,59102.0,0.55473459]
[1725125237575,0.350114,59103.0,59102.0,0.55473459]
[1725125238640,0.271014,59103.0,59102.0,0.42774543]
[1725125238856,0.271014,59103.0,59102.0,0.55473703]
[1725125239068,0.271014,59103.0,59102.0,0.42774543]
[1725125240119,0.271014,59103.0,59102.0,0.55473779]
[1725125240529,0.271014,59103.0,59102.0,0.42774543]
[1725125240945,0.29755998,59103.0,59102.0,0.42774543]
[1725125241359,0.29755998,59103.0,59102.0,0.55473696]
[1725125241560,0.29755998,59103.0,59102.0,0.55473821]
[1725125242003,0.29755998,59103.0,59102.0,0.42774626]
[1725125242436,0.29755998,59103.0,59102.0,0.55473895]
[1725125243304,0.29755998,59103.0,59102.0,0.42774626]
[1725125243753,0.271014,59103.0,59102.0,0.42774626]
[1725125244917,0.271014,59103.0,59102.0,0.55474037]
[1725125245133,0.271014,59103.0,59102.0,0.42774626]
[1725125245365,0.271014,59103.0,59102.0,0.55474101]
[1725125245824,0.271014,59103.0,59102.0,0.42774626]
[1725125246506,0.101818,59103.0,59102.0,0.55474135]
[1725125246757,0.101818,59103.0,59102.0,0.42774569]
[1725125247018,0.12836396,59103.0,59102.0,0.42774569]
[1725125247473,0.29755996,59103.0,59102.0,0.42774569]
[1725125250688,0.29755996,59103.0,59102.0,0.42772572]
[1725125250941,0.271014,59103.0,59102.0,0.42772572]
[1725125254333,0.29755993,59103.0,59102.0,0.42772572]
[1725125256578,0.29755993,59103.0,59102.0,0.42773593]
[1725125257497,0.271014,59103.0,59102.0,0.42773593]
[1725125259428,0.270014,59103.0,59102.0,0.41373593]
[1725125259839,0.270014,59103.0,59102.0,0.42773593]
[1725125260041,0.270014,59103.0,59102.0,0.41373593]
[1725125260243,0.270014,59103.0,59102.0,0.42773593]
[1725125260919,0.29656029,59103.0,59102.0,0.41373593]
[1725125261803,0.29656029,59103.0,59102.0,0.42773593]
[1725125262058,1.05024429,59103.0,59102.0,0.42773593]
[1725125263924,1.779182,59103.0,59102.0,0.50644623]
[1725125264134,1.879182,59103.0,59102.0,0.0288998]
[1725125264564,1.879182,59103.0,59102.0,0.0148998]
[1725125265015,1.879182,59103.0,59102.0,0.0288998]
[1725125265643,1.879182,59103.0,59102.0,0.0148998]
[1725125265871,1.879182,59103.0,59102.0,0.0288998]
[1725125266107,1.879182,59103.0,59102.0,0.0148998]
[1725125266961,1.9057317,59103.0,59102.0,0.0148998]
[1725125267407,1.61325252,59103.0,59102.0,0.0008998]
[1725125267609,1.78244852,59103.0,59102.0,0.0008998]
[1725125267820,1.88244852,59103.0,59102.0,0.0008998]
[1725125268728,1.78244852,59103.0,59102.0,0.0008998]
[1725125269174,1.96939452,59103.0,59102.0,0.0008998]
[1725125269383,2.13794616,59103.0,59102.0,0.0008998]
[1725125270250,2.56877016,59103.0,59102.0,0.0008998]
[1725125270700,2.55113816,59103.0,59102.0,0.0008998]
[1725125270911,2.88953016,59103.0,59102.0,0.0008998]
[1725125271588,2.86298046,59103.0,59102.0,0.0008998]
[1725125271799,2.96298046,59103.0,59102.0,0.0008998]
[1725125272771,2.96598046,59103.0,59102.0,0.0008998]
[1725125274058,2.96679846,59103.0,59102.0,0.0008998]
[1725125274486,2.99335129,59103.0,59102.0,0.0008998]
[1725125277567,2.96679846,59103.0,59102.0,0.0008998]
[1725125278594,3.01280301,59103.0,59102.0,0.0008998]
[1725125279250,3.03052892,59103.0,59102.0,0.0008998]
[1725125279469,2.98452437,59103.0,59102.0,0.0008998]
[1725125280922,3.01107904,59103.0,59102.0,0.0008998]
[1725125282190,3.34947104,59103.0,59102.0,0.0008998]
[1725125282394,3.39547559,59103.0,59102.0,0.0008998]
[1725125283270,3.34647104,59103.0,59102.0,0.0008998]
[1725125283709,3.32691637,59103.0,59102.0,0.0018998]
[1725125284028,2.72677837,59103.0,59102.0,0.0028998]
[1725125284238,4.25277537,59103.0,59102.0,0.0028998]
[1725125284903,4.25277537,59103.0,59102.0,0.00046786]
[1725125286193,4.25277537,59103.0,59102.0,0.00136766]
[1725125287061,4.27933017,59103.0,59102.0,0.00136766]
[1725125287835,3.42403617,59103.0,59102.0,0.00136766]
[1725125290866,3.39748137,59103.0,59102.0,0.00136766]
[1725125291753,3.46539437,59103.0,59102.0,0.00136766]
[1725125293631,3.06167273,59103.0,59102.0,0.00136766]
[1725125294383,3.08822716,59103.0,59102.0,0.00136766]
[1725125294797,3.65232116,59103.0,59102.0,0.00136766]
[1725125295264,3.44402116,59103.0,59102.0,0.00136766]
[1725125295495,3.38943116,59103.0,59102.0,0.00136766]
[1725125296832,3.5579828,59103.0,59102.0,0.00136766]
[1725125297564,3.53142837,59103.0,59102.0,0.00136766]
[1725125300450,1.80274273,59103.0,59102.0,0.00136766]
[1725125300673,2.11296173,59103.0,59102.0,0.00136766]
[1725125300855,2.18551989,59103.0,59102.0,0.00136766]
[1725125302089,2.17851989,59103.0,59102.0,0.00136766]
[1725125302336,2.18651989,59103.0,59102.0,0.00236766]
[1725125302845,2.34707153,59103.0,59102.0,0.00136766]
[1725125303290,2.34707153,59103.0,59102.0,0.0008998]
[1725125303503,2.34707153,59103.0,59102.0,0.0018998]
[1725125304758,2.30906698,59103.0,59102.0,0.0028998]
[1725125306034,2.56432298,59103.0,59102.0,0.0028998]
[1725125306253,1.83029634,59103.0,59102.0,0.0028998]
[1725125306459,1.97320234,59103.0,59102.0,0.0028998]
[1725125307548,1.94664873,59103.0,59102.0,0.0028998]
[1725125308818,1.86974873,59103.0,59102.0,0.0028998]
[1725125310926,1.89630255,59103.0,59102.0,0.0028998]
[1725125312655,1.87527855,59103.0,59102.0,0.0028998]
[1725125313761,1.84872473,59103.0,59102.0,0.0028998]
[1725125314177,2.01727637,59103.0,59102.0,0.0028998]
[1725125316660,1.89539437,59103.0,59102.0,0.0028998]
[1725125316869,1.92194823,59103.0,59102.0,0.0028998]
[1725125317298,2.42000623,59103.0,59102.0,0.0028998]
[1725125319192,2.75839823,59103.0,59102.0,0.0028998]
[1725125320976,2.73184437,59103.0,59102.0,0.0028998]
[1725125323578,2.56329273,59103.0,59102.0,0.0028998]
[1725125324269,2.58984664,59103.0,59102.0,0.0028998]
[1725125326378,2.65504664,59103.0,59102.0,0.0028998]
[1725125327785,2.62849273,59103.0,59102.0,0.0028998]
[1725125328009,2.90286073,59103.0,59102.0,0.0028998]
[1725125328261,3.07141237,59103.0,59102.0,0.0028998]
[1725125328691,2.53816291,59103.0,59102.0,0.0028998]
[1725125330254,2.58416746,59103.0,59102.0,0.0028998]
[1725125331111,2.61072182,59103.0,59102.0,0.0028998]
[1725125337652,2.58416746,59103.0,59102.0,0.0028998]
[1725125339016,3.25720691,59103.0,59102.0,0.0028998]
[1725125340752,3.42575855,59103.0,59102.0,0.0028998]
[1725125340958,3.4523129,59103.0,59102.0,0.0028998]
[1725125342726,3.9599029,59103.0,59102.0,0.0028998]
[1725125343416,3.9649029,59103.0,59102.0,0.0028998]
[1725125346464,3.9599029,59103.0,59102.0,0.0028998]
[1725125346675,3.52517626,59103.0,59102.0,0.0028998]
[1725125346945,3.38007626,59103.0,59102.0,0.0028998]
[1725125347579,3.35352191,59103.0,59102.0,0.0028998]
[1725125348598,3.43652191,59103.0,59102.0,0.0028998]
[1725125348817,3.48252646,59103.0,59102.0,0.0028998]
[1725125349026,3.6510781,59103.0,59102.0,0.0028998]
[1725125349791,4.6322551,59103.0,59102.0,0.0028998]
[1725125349999,4.2188071,59103.0,59102.0,0.0028998]
[1725125350231,4.09136755,59103.0,59102.0,0.0028998]
[1725125350432,3.93218355,59103.0,59102.0,0.0028998]
[1725125351000,3.79018675,59103.0,59102.0,0.0028998]
[1725125351687,2.44964775,59103.0,59102.0,0.0028998]
[1725125351895,2.28345275,59103.0,59102.0,0.0028998]
[1725125352128,2.28345275,59103.0,59102.0,0.0689998]
[1725125353473,2.18345275,59103.0,59102.0,0.1545998]
[1725125353712,1.84506075,59103.0,59102.0,0.1545998]
[1725125354914,1.83706075,59103.0,59102.0,0.1525998]
[1725125355141,1.93706075,59103.0,59102.0,0.1525998]
[1725125355367,1.94506075,59103.0,59102.0,0.1545998]
[1725125355592,1.94506075,59103.0,59102.0,0.1535998]
[1725125355811,1.93706075,59103.0,59102.0,0.1565998]
[1725125356027,1.93706075,59103.0,59102.0,0.1605998]
[1725125357604,1.91050591,59103.0,59102.0,0.1605998]
[1725125358071,1.91050591,59103.0,59102.0,0.1565998]
[1725125358295,1.91050591,59103.0,59102.0,0.1525998]
[1725125358512,1.91050591,59103.0,59102.0,0.1625998]
[1725125359883,1.23372191,59103.0,59102.0,0.1625998]
[1725125360319,1.57211391,59103.0,59102.0,0.1625998]
[1725125360538,1.23372191,59103.0,59102.0,0.1625998]
[1725125360995,1.24254529,59103.0,59102.0,0.1855998]
[1725125363668,1.58093729,59103.0,59102.0,0.1855998]
[1725125363893,1.58093729,59103.0,59102.0,0.1625998]
[1725125364585,1.91932929,59103.0,59102.0,0.1625998]
[1725125364805,1.58093729,59103.0,59102.0,0.1625998]
[1725125365020,1.91932929,59103.0,59102.0,0.1625998]
[1725125366543,1.58093729,59103.0,59102.0,0.1625998]
[1725125367007,1.91932929,59103.0,59102.0,0.1625998]
[1725125367230,1.91932929,59103.0,59102.0,0.1855998]
[1725125367231,1.58093729,59103.0,59102.0,0.1855998]
[1725125367674,1.554388,59103.0,59102.0,0.1855998]
[1725125371008,1.58093663,59103.0,59102.0,0.1855998]
[1725125377500,1.554388,59103.0,59102.0,0.1855998]
[1725125380995,1.5809362,59103.0,59102.0,0.1855998]
[1725125382614,1.2425442,59103.0,59102.0,0.1855998]
[1725125385089,1.2425442,59103.0,59102.0,0.18553966]
[1725125386119,0.0422662,59103.0,59102.0,1.99319567]
[1725125386358,0.0422662,59103.0,59102.0,2.01699567]
[1725125386598,0.0422662,59103.0,59102.0,1.90604104]
[1725125386841,0.0273662,59103.0,59102.0,1.89604104]
[1725125387070,0.0273662,59103.0,59102.0,1.91004104]
[1725125387318,0.0283662,59103.0,59102.0,1.90813532]
[1725125387562,0.101818,59103.0,59102.0,1.90813532]
[1725125387783,0.100818,59103.0,59102.0,1.89413532]
[1725125388032,0.100818,59103.0,59102.0,1.89613532]
[1725125388506,0.100818,59103.0,59102.0,1.88213532]
[1725125388995,0.100818,59103.0,59102.0,1.91013532]
[1725125389231,0.100818,59103.0,59102.0,2.03682745]
[1725125389685,0.100818,59103.0,59102.0,2.03482745]
[1725125390443,0.100818,59103.0,59102.0,2.03682745]
[1725125392029,0.100818,59103.0,59102.0,2.37522545]
[1725125393242,0.100818,59103.0,59102.0,2.24853332]
[1725125393896,0.100818,59103.0,59102.0,2.24841098]
[1725125396624,0.100818,59103.0,59102.0,2.24641098]
[1725125396838,0.47762182,59127.0,59111.0,0.18142531]
[1725125397072,0.16914,59123.0,59118.0,0.169151]
[1725125397302,0.16914,59123.0,59119.0,0.023]
[1725125397557,0.507406,59125.0,59119.0,0.023]
[1725125397755,0.169955,59124.0,59119.0,0.0889]
[1725125397998,0.169955,59124.0,59120.0,0.169146]
[1725125398235,0.269955,59124.0,59121.0,0.023]
[1725125398913,0.1,59123.0,59121.0,0.023]
[1725125399358,0.1,59123.0,59121.0,0.032]
[1725125400022,0.1679,59123.0,59121.0,0.032]
[1725125400248,0.1679,59123.0,59121.0,0.023]
[1725125400249,0.169141,59122.0,59121.0,0.023]
[1725125400530,0.269141,59122.0,59121.0,0.019]
[1725125400744,0.945707,59122.0,59121.0,0.042]
[1725125400964,0.945707,59122.0,59121.0,0.033]
[1725125401189,0.607424,59122.0,59121.0,0.033]
[1725125401424,0.945707,59122.0,59121.0,0.047]
[1725125401863,0.945707,59122.0,59121.0,0.037]
[1725125402088,0.945707,59122.0,59121.0,0.051]
[1725125402544,0.945707,59122.0,59121.0,0.037]
[1725125402977,0.945707,59122.0,59121.0,0.051]
[1725125403185,0.945707,59122.0,59121.0,0.037]
[1725125403635,0.945707,59122.0,59121.0,0.035]
[1725125403858,0.945707,59122.0,59121.0,0.034]
[1725125405269,0.97224769,59122.0,59121.0,0.046]
[1725125406363,1.31053069,59122.0,59121.0,0.046]
[1725125407673,1.28399,59122.0,59121.0,0.046]
[1725125408854,0.945707,59122.0,59121.0,0.046]
[1725125410829,0.97224777,59122.0,59121.0,0.046]
[1725125412320,0.97224777,59122.0,59121.0,0.0468998]
[1725125412993,1.31053077,59122.0,59121.0,0.0468998]
[1725125414815,1.31053077,59122.0,59121.0,0.0238998]
[1725125414816,1.91204777,59122.0,59121.0,0.0238998]
[1725125415019,2.25033077,59122.0,59121.0,0.0238998]
[1725125415684,2.25977651,59122.0,59121.0,0.0238998]
[1725125415999,2.25977651,59122.0,59121.0,0.0128998]
[1725125416224,2.26577651,59122.0,59121.0,0.0008998]
[1725125416431,2.43632815,59122.0,59121.0,0.0018998]
[1725125416648,2.42832815,59122.0,59121.0,0.0008998]
[1725125416863,2.42832815,59122.0,59121.0,0.0018998]
[1725125416864,2.43032815,59122.0,59121.0,0.0018998]
[1725125417065,2.43032815,59122.0,59121.0,0.0028998]
[1725125417066,2.43732815,59122.0,59121.0,0.0028998]
[1725125417495,2.41078738,59122.0,59121.0,0.0028998]
[1725125418998,2.75407038,59122.0,59121.0,8e-07]
[1725125419219,2.64083638,59122.0,59121.0,8e-07]
[1725125419669,2.65083638,59122.0,59121.0,8e-07]
[1725125420366,2.69392426,59122.0,59121.0,8e-07]
[1725125420615,2.65083638,59122.0,59121.0,8e-07]
[1725125420853,2.67738324,59122.0,59121.0,8e-07]
[1725125421502,2.65083638,59122.0,59121.0,8e-07]
[1725125422611,0.001,59114.0,59102.0,0.50624752]
[1725125422867,1.668264,59103.0,59102.0,0.50624752]
[1725125423094,2.186498,59103.0,59102.0,0.00083966]
[1725125423937,1.963464,59103.0,59102.0,0.00083966]
[1725125424167,1.964464,59103.0,59102.0,0.00883966]
[1725125424626,1.964464,59103.0,59102.0,0.00983966]
[1725125425071,1.964464,59103.0,59102.0,0.00883966]
[1725125425519,1.965464,59103.0,59102.0,0.01483966]
[1725125426681,2.49378863,59103.0,59102.0,0.01483966]
[1725125427360,1.184753,59084.0,59083.0,0.0619]
[1725125427841,1.284753,59084.0,59083.0,0.0619]
[1725125428079,1.184792,59082.0,59081.0,0.0757]
[1725125428337,1.284792,59082.0,59081.0,0.0757]
[1725125428794,1.184813,59081.0,59080.0,0.0619]
[1725125429031,1.184813,59081.0,59080.0,0.073]
[1725125429260,1.284813,59081.0,59080.0,0.073]
[1725125429490,1.284813,59081.0,59080.0,0.096]
[1725125430241,1.285813,59081.0,59080.0,0.0161]
[1725125430700,1.348913,59081.0,59080.0,0.005]
[1725125430928,1.285813,59081.0,59080.0,0.005]
[1725125431390,1.286813,59081.0,59080.0,0.01]
[1725125431855,1.285813,59081.0,59080.0,0.005]
[1725125432067,1.285813,59081.0,59080.0,0.1696]
[1725125432306,1.284813,59081.0,59080.0,0.1646]
[1725125432531,1.285813,59081.0,59080.0,0.1696]
[1725125432766,1.284813,59081.0,59080.0,0.1646]
[1725125433233,1.285813,59081.0,59080.0,0.1696]
[1725125433471,1.285813,59081.0,59080.0,0.1606]
[1725125434379,1.284813,59081.0,59080.0,0.1606]
[1725125435744,1.285813,59081.0,59080.0,0.1646]
[1725125436908,1.285813,59081.0,59080.0,0.1654998]
[1725125438474,0.101,59081.0,59080.0,0.1654998]
[1725125438709,0.001,59081.0,59080.0,0.3347618]
[1725125439612,0.001,59081.0,59080.0,0.1654998]
[1725125439856,0.1,59083.0,59081.0,0.138]
[1725125440068,0.2,59084.0,59082.0,0.253855]
[1725125440282,0.2,59084.0,59083.0,0.64914387]
[1725125440283,0.1,59084.0,59083.0,0.64914387]
[1725125440529,0.1,59084.0,59083.0,1.006265]
[1725125441195,0.1,59084.0,59083.0,0.667759]
[1725125441448,0.101,59084.0,59083.0,0.673759]
[1725125442077,0.101,59084.0,59083.0,0.674759]
[1725125442306,0.101,59084.0,59083.0,0.675759]
[1725125442736,0.102,59084.0,59083.0,0.685759]
[1725125443626,0.101,59084.0,59083.0,0.147]
[1725125443877,0.609751,59084.0,59083.0,0.156]
[1725125445465,0.609751,59084.0,59083.0,0.179]
[1725125447034,0.97480932,59084.0,59083.0,0.179]
[1725125447471,0.948252,59084.0,59083.0,0.179]
[1725125449663,0.97480932,59084.0,59083.0,0.179]
[1725125450544,0.63630832,59084.0,59083.0,0.179]
[1725125452361,0.29780732,59084.0,59083.0,0.179]
[1725125453487,0.63630832,59084.0,59083.0,0.179]
[1725125454794,0.609751,59084.0,59083.0,0.179]
[1725125456137,0.27125,59084.0,59083.0,0.179]
[1725125457103,0.609751,59084.0,59083.0,0.179]
[1725125457312,0.16925,59084.0,59083.0,0.1026]
[1725125457540,0.607751,59084.0,59083.0,0.1026]
[1725125458004,0.63430562,59084.0,59083.0,0.1026]
[1725125458655,0.29580462,59084.0,59083.0,0.1026]
[1725125460903,0.12655462,59084.0,59083.0,0.1026]
[1725125461725,0.1,59084.0,59083.0,0.1034998]
[1725125462178,0.100818,59084.0,59083.0,0.1034998]
[1725125463206,0.100818,59084.0,59083.0,0.2727528]
[1725125463638,0.100818,59084.0,59083.0,0.6112588]
[1725125464050,0.100818,59084.0,59083.0,1.0295648]
[1725125464877,0.12737182,59084.0,59083.0,0.6910588]
[1725125465288,0.12737182,59084.0,59083.0,0.74155895]
[1725125467331,0.12737182,59084.0,59083.0,1.06703202]
[1725125467591,0.100818,59084.0,59083.0,1.06703202]
[1725125469126,0.100818,59084.0,59083.0,0.72852602]
[1725125469345,0.100818,59084.0,59083.0,0.11908406]
[1725125469560,0.270068,59084.0,59083.0,0.0428998]
[1725125469791,0.708569,59084.0,59083.0,0.0428998]
[1725125470016,1.04707,59084.0,59083.0,0.0428998]
[1725125471585,1.462871,59084.0,59083.0,0.0428998]
[1725125473344,1.385571,59084.0,59083.0,0.0428998]
[1725125475633,1.39320351,59084.0,59083.0,0.0428998]
[1725125476080,1.41975826,59084.0,59083.0,0.0428998]
[1725125477597,1.39320351,59084.0,59083.0,0.0428998]
[1725125478675,1.385571,59084.0,59083.0,0.0428998]
[1725125479077,1.04707,59084.0,59083.0,0.0428998]
[1725125481098,1.04707,59084.0,59083.0,0.09371771]
[1725125481340,1.04707,59084.0,59083.0,0.0428998]
[1725125482026,1.04707,59084.0,59083.0,0.11912667]
[1725125482252,1.04707,59084.0,59083.0,0.0428998]
[1725125482253,1.451771,59084.0,59083.0,0.0428998]
[1725125482481,1.451771,59084.0,59083.0,0.0198998]
[1725125483365,1.69602264,59084.0,59083.0,0.0198998]
[1725125483608,1.527471,59084.0,59083.0,0.0198998]
[1725125484922,1.527471,59084.0,59083.0,0.0108998]
[1725125485129,1.527471,59084.0,59083.0,0.0008998]
[1725125485360,1.55602895,59084.0,59083.0,0.0208998]
[1725125487588,1.529471,59084.0,59083.0,0.0208998]
[1725125491733,2.194783,59084.0,59083.0,0.0208998]
[1725125493736,1.867972,59084.0,59083.0,0.0208998]
[1725125493946,2.033939,59084.0,59083.0,0.0108998]
[1725125494157,2.032939,59084.0,59083.0,0.0008998]
[1725125494375,2.033939,59084.0,59083.0,0.0088998]
[1725125494589,2.034939,59084.0,59083.0,0.0178998]
[1725125496381,2.06149816,59084.0,59083.0,0.0178998]
[1725125496766,1.89453116,59084.0,59083.0,0.0178998]
[1725125496981,2.22085716,59084.0,59083.0,0.0178998]
[1725125497642,2.194298,59084.0,59083.0,0.0178998]
[1725125498793,2.70135064,59084.0,59083.0,0.0178998]
[1725125499012,2.71907655,59084.0,59083.0,0.0178998]
[1725125500148,2.71807655,59084.0,59083.0,0.0098998]
[1725125500359,2.71707655,59084.0,59083.0,0.0058998]
[1725125500569,2.71807655,59084.0,59083.0,0.0058998]
[1725125500985,2.71807655,59084.0,59083.0,0.0068998]
[1725125501454,2.71707655,59084.0,59083.0,0.0028998]
[1725125501906,2.71707655,59084.0,59083.0,0.0058998]
[1725125505944,2.54852491,59084.0,59083.0,0.0058998]
[1725125506148,2.57508512,59084.0,59083.0,0.0058998]
[1725125507303,2.09468412,59084.0,59083.0,0.0672998]
[1725125507529,1.72962291,59084.0,59083.0,0.1433998]
[1725125507780,1.2564597,59084.0,59083.0,0.1433998]
[1725125508944,1.3564597,59084.0,59083.0,0.1433998]
[1725125509389,1.3572777,59084.0,59083.0,0.1433998]
[1725125511413,0.100818,59084.0,59083.0,0.3356528]
[1725125511839,0.100818,59084.0,59083.0,0.38643025]
[1725125512092,0.100818,59084.0,59083.0,0.75732498]
[1725125512325,0.100818,59084.0,59083.0,1.39563017]
[1725125512559,0.100818,59084.0,59083.0,1.50628508]
[1725125512822,0.100818,59084.0,59083.0,1.50428508]
[1725125513032,0.100818,59084.0,59083.0,1.50928508]
[1725125513242,0.100818,59084.0,59083.0,1.40473017]
[1725125513454,0.100818,59084.0,59083.0,1.40573017]
[1725125513911,0.101818,59084.0,59083.0,1.74823617]
[1725125514148,0.102818,59084.0,59083.0,1.86979108]
[1725125514365,0.102818,59084.0,59083.0,1.76823617]
[1725125516918,0.102818,59084.0,59083.0,1.42973017]
[1725125517150,0.102818,59084.0,59083.0,1.55644774]
[1725125517372,0.102818,59084.0,59083.0,1.89495374]
[1725125517580,0.102818,59084.0,59083.0,1.76823617]
[1725125517801,0.102818,59084.0,59083.0,1.42973017]
[1725125519249,0.102818,59084.0,59083.0,1.76823617]
[1725125520353,0.102818,59084.0,59083.0,1.76815864]
[1725125522247,0.102818,59084.0,59083.0,1.19275391]
[1725125522482,0.102818,59084.0,59083.0,1.16742235]
[1725125522742,0.102818,59084.0,59083.0,1.15632235]